bitfinex-derivatives/quotes_BTCF0:USTF0_20250912
["timestamp","ask_amount","ask_price","bid_price","bid_amount"]
[1757698559796,0.02022917,115850.0,115840.0,2.57759906]
[1757698559998,0.02022917,115850.0,115840.0,1.75171906]
[1757698560197,0.02022917,115850.0,115840.0,2.57759906]
[1757698560497,0.02022917,115850.0,115840.0,2.64567282]
[1757698560897,0.02022917,115850.0,115840.0,1.81979282]
[1757698561097,0.02022917,115850.0,115840.0,2.64535282]
[1757698561292,0.02022917,115850.0,115840.0,1.39745216]
[1757698561487,0.02022917,115850.0,115840.0,1.81979282]
[1757698561692,0.02022917,115850.0,115840.0,2.64547282]
[1757698561999,0.02022917,115850.0,115840.0,1.81979282]
[1757698562199,0.02022917,115850.0,115840.0,2.64535282]
[1757698563101,0.01762358,115870.0,115850.0,0.0862646]
[1757698563302,0.01762358,115870.0,115860.0,1.60834066]
[1757698563601,0.01762358,115870.0,115860.0,2.14834066]
[1757698563602,0.07351095,115870.0,115860.0,2.14834066]
[1757698564398,0.07551095,115870.0,115860.0,2.14802066]
[1757698564602,0.05371725,115870.0,115860.0,2.23428446]
[1757698565201,0.04110725,115870.0,115860.0,2.25465127]
[1757698565394,0.04110725,115870.0,115860.0,2.25437127]
[1757698566298,0.04110725,115870.0,115860.0,2.61489127]
[1757698566692,0.04110725,115870.0,115860.0,2.86489127]
[1757698567295,0.04110725,115870.0,115860.0,2.8735125]
[1757698569496,0.03910725,115870.0,115860.0,2.8727525]
[1757698570096,0.03510725,115870.0,115860.0,2.8727525]
[1757698570295,0.03610725,115870.0,115860.0,2.8727525]
[1757698570791,0.01261,115890.0,115880.0,0.0862424]
[1757698571098,0.01261,115890.0,115880.0,2.67358768]
[1757698571292,0.0302533,115900.0,115890.0,0.086242]
[1757698571599,0.0302533,115900.0,115890.0,1.37938266]
[1757698571997,0.0302533,115900.0,115890.0,2.20266266]
[1757698572197,0.0302533,115900.0,115890.0,2.20242266]
[1757698573296,0.0312533,115900.0,115890.0,2.20242266]
[1757698573899,0.0312533,115900.0,115890.0,1.37938266]
[1757698574094,0.01461,115900.0,115890.0,2.20238266]
[1757698574299,0.01461,115900.0,115890.0,2.20186266]
[1757698575207,0.01461,115900.0,115890.0,1.37938266]
[1757698575406,0.01461,115900.0,115890.0,2.20166266]
[1757698577905,0.01461,115900.0,115890.0,1.37938266]
[1757698578106,0.01461,115900.0,115890.0,2.20118266]
[1757698578505,0.01461,115900.0,115890.0,1.37938266]
[1757698578808,0.01461,115900.0,115890.0,2.20114266]
[1757698582208,0.01461,115900.0,115890.0,2.20110266]
[1757698582609,0.01461,115900.0,115890.0,1.37938266]
[1757698583008,0.01461,115900.0,115890.0,2.20106266]
[1757698583210,0.03776,115900.0,115890.0,0.957042]
[1757698583415,0.05543881,115900.0,115890.0,2.20106266]
[1757698583820,0.05548881,115900.0,115890.0,2.20106266]
[1757698584016,0.03781,115900.0,115890.0,2.20106266]
[1757698584524,0.17859022,115900.0,115890.0,1.01158022]
[1757698584722,1.08853648,115900.0,115890.0,0.51]
[1757698584910,1.08853648,115900.0,115890.0,1.33164]
[1757698585218,0.41619582,115900.0,115890.0,1.47242022]
[1757698585415,0.05539582,115900.0,115890.0,1.61320044]
[1757698585612,0.19617604,115900.0,115890.0,1.97400044]
[1757698586016,0.19617604,115900.0,115890.0,1.61320044]
[1757698586523,0.55697604,115900.0,115890.0,1.61320044]
[1757698587625,0.55697604,115900.0,115890.0,1.33164]
[1757698587824,0.55697604,115900.0,115890.0,1.61320044]
[1757698588012,0.41619582,115900.0,115890.0,1.61320044]
[1757698588217,0.55697604,115900.0,115890.0,1.61320044]
[1757698589825,0.41619582,115900.0,115890.0,1.61320044]
[1757698590026,0.55697604,115900.0,115890.0,1.33164]
[1757698590227,0.55697604,115900.0,115890.0,1.47242022]
[1757698590722,0.19617604,115900.0,115890.0,1.47242022]
[1757698590929,0.55697604,115900.0,115890.0,1.47242022]
[1757698591521,0.41619582,115900.0,115890.0,1.47242022]
[1757698591722,0.41619582,115900.0,115890.0,1.61320044]
[1757698591922,0.55697604,115900.0,115890.0,1.61320044]
[1757698592121,0.55697604,115900.0,115890.0,1.33164]
[1757698592323,0.55697604,115900.0,115890.0,1.47242022]
[1757698592626,0.94775626,115900.0,115890.0,1.47242022]
[1757698592932,0.94775626,115900.0,115890.0,1.33164]
[1757698593130,0.97342762,115900.0,115890.0,1.33164]
[1757698594731,1.11420784,115900.0,115890.0,1.33164]
[1757698595126,0.97342762,115900.0,115890.0,1.33164]
[1757698595322,0.97342762,115900.0,115890.0,1.47242022]
[1757698595521,0.69186718,115900.0,115890.0,1.47242022]
[1757698595726,0.97342762,115900.0,115890.0,1.47242022]
[1757698596128,0.69186718,115900.0,115890.0,1.47242022]
[1757698596321,0.33106718,115900.0,115890.0,1.47242022]
[1757698596621,0.19617604,115900.0,115890.0,1.61320044]
[1757698596827,0.05539582,115900.0,115890.0,1.61320044]
[1757698597329,0.19617604,115900.0,115890.0,1.61320044]
[1757698598026,0.05539582,115900.0,115890.0,1.61320044]
[1757698598225,0.05539582,115900.0,115890.0,1.75398066]
[1757698599323,0.05539582,115900.0,115890.0,1.84022406]
[1757698599525,0.03224582,115900.0,115890.0,2.20102406]
[1757698600333,0.03224582,115900.0,115890.0,1.7786834]
[1757698600534,0.03224582,115900.0,115890.0,2.20102406]
[1757698601034,0.03224582,115900.0,115890.0,2.11478066]
[1757698601439,0.03224582,115900.0,115890.0,1.75398066]
[1757698601629,0.03224582,115900.0,115890.0,1.61320044]
[1757698602333,0.03224582,115900.0,115890.0,1.75398066]
[1757698602732,0.03224582,115900.0,115890.0,1.33164]
[1757698603033,0.03224582,115900.0,115890.0,1.75398066]
[1757698603428,0.03224582,115900.0,115890.0,1.33164]
[1757698603833,0.03224582,115900.0,115890.0,1.75398066]
[1757698604338,0.03224582,115900.0,115890.0,1.33164]
[1757698604538,0.03224582,115900.0,115890.0,1.61320044]
[1757698604940,0.03224582,115900.0,115890.0,1.33164]
[1757698605142,0.03224582,115900.0,115890.0,1.61320044]
[1757698605837,0.17302604,115900.0,115890.0,1.61320044]
[1757698606038,1.08640648,115900.0,115890.0,0.51]
[1757698606234,1.11210606,115900.0,115890.0,0.51]
[1757698608442,1.06501472,115900.0,115890.0,0.51]
[1757698611941,0.03617,115860.0,115850.0,0.38296]
[1757698612142,0.24134106,115860.0,115850.0,1.3936]
[1757698612338,0.0537164,115860.0,115850.0,1.58122466]
[1757698612535,0.0398164,115860.0,115850.0,1.59237466]
[1757698612740,0.0398164,115860.0,115850.0,1.95317466]
[1757698613257,0.0398164,115860.0,115850.0,1.96494736]
[1757698613453,0.0398164,115860.0,115850.0,2.30122116]
[1757698613454,0.0175464,115860.0,115850.0,2.30122116]
[1757698613758,0.0175464,115860.0,115850.0,2.30322116]
[1757698614157,0.0175464,115860.0,115850.0,2.49084582]
[1757698614360,0.0537164,115860.0,115850.0,2.19702466]
[1757698614856,0.0537164,115860.0,115850.0,2.19402466]
[1757698615056,0.0537164,115860.0,115850.0,2.20276324]
[1757698615263,0.0537164,115860.0,115850.0,1.18496]
[1757698615453,0.0537164,115860.0,115850.0,1.83322466]
[1757698616360,0.0537164,115860.0,115850.0,2.19402466]
[1757698616550,0.0537164,115860.0,115850.0,2.0064]
[1757698616747,0.0398164,115860.0,115850.0,2.20517466]
[1757698617054,0.0398164,115860.0,115850.0,2.01755]
[1757698617246,0.0398164,115860.0,115850.0,2.02608099]
[1757698617558,0.0398164,115860.0,115850.0,2.21370565]
[1757698617950,0.0398164,115860.0,115850.0,2.29997985]
[1757698618256,0.0175464,115860.0,115850.0,2.29997985]
[1757698618755,0.0175464,115860.0,115850.0,2.48760451]
[1757698619148,0.0175464,115860.0,115850.0,1.66616451]
[1757698619352,0.0175464,115860.0,115850.0,2.48760451]
[1757698620260,0.0175464,115860.0,115850.0,1.66616451]
[1757698620460,0.0175464,115860.0,115850.0,4.14476451]
[1757698620655,0.0175464,115860.0,115850.0,3.32336451]
[1757698620860,0.0175464,115860.0,115850.0,3.76951519]
[1757698621059,0.20517106,115860.0,115850.0,2.60331]
[1757698621254,0.21907106,115860.0,115850.0,2.23136]
[1757698621454,0.21907106,115860.0,115850.0,3.05276]
[1757698621759,0.0314464,115860.0,115850.0,3.41356]
[1757698621963,0.0314464,115860.0,115850.0,3.60118466]
[1757698622163,0.0175464,115860.0,115850.0,3.69860886]
[1757698623259,1.03976572,115860.0,115850.0,0.57416]
[1757698623658,0.85214106,115860.0,115850.0,0.57416]
[1757698624261,1.03976572,115860.0,115850.0,0.57416]
[1757698624459,1.03976572,115860.0,115850.0,0.552]
[1757698624460,1.04840061,115860.0,115850.0,0.552]
[1757698624659,1.04840061,115860.0,115850.0,1.37336]
[1757698624855,1.23602527,115860.0,115850.0,0.552]
[1757698625159,1.04840061,115860.0,115850.0,0.002]
[1757698625365,1.03976572,115860.0,115850.0,0.002]
[1757698627465,1.03976572,115860.0,115850.0,0.001]
[1757698627666,1.04076572,115860.0,115850.0,0.001]
[1757698628367,0.6655164,115860.0,115850.0,0.001]
[1757698628566,1.04076572,115860.0,115850.0,0.001]
[1757698628767,1.04076572,115860.0,115840.0,0.84157106]
[1757698628965,0.58459466,115850.0,115840.0,1.39373106]
[1757698629567,0.39697,115850.0,115840.0,1.39373106]
[1757698629767,0.58459466,115850.0,115840.0,1.39373106]
[1757698630465,0.3922464,115860.0,115840.0,2.03013038]
[1757698630673,0.05396578,115870.0,115860.0,0.02216]
[1757698630970,0.05396578,115870.0,115860.0,1.6716026]
[1757698631165,0.05396578,115870.0,115860.0,1.48397794]
[1757698631367,0.24159044,115870.0,115860.0,1.48397794]
[1757698631562,0.24159044,115870.0,115860.0,1.43397794]
[1757698631867,0.60239044,115870.0,115860.0,1.43397794]
[1757698632767,0.60539044,115870.0,115860.0,1.41356]
[1757698633361,0.60539044,115870.0,115860.0,1.3914]
[1757698633570,1.1538151,115870.0,115860.0,0.57]
[1757698633772,0.03617,115850.0,115840.0,0.04233106]
[1757698633974,0.03617,115850.0,115840.0,1.58135572]
[1757698635273,0.03617,115850.0,115840.0,1.94211572]
[1757698635776,0.03617,115850.0,115840.0,1.58131572]
[1757698636176,0.03617,115850.0,115840.0,0.57233106]
[1757698636379,0.22379466,115850.0,115840.0,1.58131572]
[1757698636673,0.03617,115850.0,115840.0,1.58131572]
[1757698639272,0.03617,115850.0,115840.0,1.39369106]
[1757698639682,0.03617,115850.0,115840.0,1.58131572]
[1757698640275,0.03617,115850.0,115840.0,1.94211572]
[1757698640676,0.02227,115850.0,115840.0,1.94211572]
[1757698640980,0.02227,115850.0,115840.0,1.95326572]
[1757698641168,0.02227,115850.0,115840.0,1.76564106]
[1757698641364,0.02227,115850.0,115840.0,1.95326572]
[1757698641565,0.03609,115850.0,115840.0,1.94211572]
[1757698641768,0.03609,115850.0,115840.0,1.58131572]
[1757698642975,0.03609,115850.0,115840.0,1.58127572]
[1757698644081,0.03609,115850.0,115840.0,1.39365106]
[1757698644273,0.03609,115850.0,115840.0,1.58127572]
[1757698647683,0.22371466,115850.0,115840.0,0.57233106]
[1757698647888,1.02213932,115850.0,115840.0,0.55017106]
[1757698648381,1.04807178,115850.0,115840.0,0.55017106]
[1757698648582,1.04807254,115850.0,115840.0,0.02017106]
[1757698649379,0.67282322,115850.0,115840.0,0.02017106]
[1757698649586,1.04807254,115850.0,115840.0,0.02017106]
[1757698649784,0.67282322,115850.0,115840.0,0.02017106]
[1757698649981,0.67282322,115850.0,115840.0,0.66212106]
[1757698650286,0.61044788,115850.0,115840.0,0.66212106]
[1757698650482,0.42282322,115850.0,115840.0,1.67098572]
[1757698650688,0.39689,115850.0,115840.0,1.67098572]
[1757698651079,0.03609,115850.0,115840.0,1.67098572]
[1757698651373,0.03609,115850.0,115840.0,1.56964246]
[1757698651585,0.02227,115850.0,115840.0,1.76841712]
[1757698651893,0.02227,115850.0,115840.0,1.75726712]
[1757698651894,0.03609,115850.0,115840.0,1.75726712]
[1757698652080,0.03609,115850.0,115840.0,1.67098572]
[1757698652683,0.02227,115850.0,115840.0,1.67098572]
[1757698653185,0.39249578,115870.0,115850.0,0.0331]
[1757698653389,0.03711,115860.0,115850.0,0.73072466]
[1757698653688,0.03711,115860.0,115850.0,0.71957466]
[1757698654097,0.39791,115860.0,115850.0,0.53195]
[1757698654284,0.39791,115860.0,115850.0,1.54077466]
[1757698654681,0.03711,115860.0,115850.0,1.54077466]
[1757698655084,0.03711,115850.0,115840.0,0.02017106]
[1757698655391,0.79906809,115850.0,115840.0,0.13017106]
[1757698655690,0.79906809,115850.0,115840.0,0.02017106]
[1757698655691,1.02315932,115850.0,115840.0,0.02017106]
[1757698655884,0.86144473,115850.0,115840.0,0.02017106]
[1757698656282,0.61144473,115850.0,115840.0,0.53017106]
[1757698656483,0.61144473,115850.0,115840.0,0.02017106]
[1757698657993,0.68068582,115850.0,115840.0,0.02017106]
[1757698658488,0.71167988,115850.0,115840.0,0.02017106]
[1757698659292,0.9302986,115850.0,115840.0,0.02017106]
[1757698659584,0.71167988,115850.0,115840.0,0.02017106]
[1757698659791,1.1802986,115850.0,115840.0,0.02017106]
[1757698660390,0.96167988,115850.0,115840.0,0.02017106]
[1757698660791,1.1802986,115850.0,115840.0,0.02017106]
[1757698663182,0.96167988,115850.0,115840.0,0.02017106]
[1757698663379,1.78291988,115850.0,115840.0,0.02017106]
[1757698664795,2.0015386,115850.0,115840.0,0.02017106]
[1757698666897,1.56430116,115850.0,115840.0,0.02017106]
[1757698667094,2.0015386,115850.0,115840.0,0.02017106]
[1757698668484,2.0927022,115850.0,115840.0,0.02017106]
[1757698669398,1.56430116,115850.0,115840.0,0.02017106]
[1757698669595,0.01341,115820.0,115810.0,0.00038]
[1757698669791,1.86050376,115820.0,115810.0,0.57038]
[1757698670799,1.86050376,115820.0,115810.0,0.57138]
[1757698670993,1.59630324,115820.0,115810.0,0.57138]
[1757698671198,1.86050376,115820.0,115810.0,0.57138]
[1757698671997,1.86925945,115820.0,115810.0,0.57138]
[1757698672192,2.13345997,115820.0,115810.0,0.57138]
[1757698672398,1.89512292,115820.0,115810.0,0.00138]
[1757698672592,1.07384292,115820.0,115810.0,0.00138]
[1757698672792,1.07384292,115820.0,115810.0,0.00338]
[1757698672793,1.89516292,115820.0,115810.0,0.00338]
[1757698674293,1.07384292,115820.0,115810.0,0.00338]
[1757698674697,1.89516292,115820.0,115810.0,0.00338]
[1757698675297,1.89516292,115820.0,115810.0,0.00138]
[1757698675599,1.89516292,115820.0,115810.0,0.00238]
[1757698677198,1.07384292,115820.0,115810.0,0.00238]
[1757698677397,1.89520292,115820.0,115810.0,0.00238]
[1757698677994,2.15939533,115820.0,115810.0,0.00238]
[1757698678195,1.89519481,115820.0,115810.0,0.00238]
[1757698678398,1.63099429,115820.0,115810.0,0.00238]
[1757698678701,1.23256016,115820.0,115810.0,0.00238]
[1757698679201,2.05392016,115820.0,115810.0,0.00238]
[1757698679698,0.01399,115790.0,115770.0,0.30053529]
[1757698679904,0.55476691,115790.0,115780.0,0.02306]
[1757698680097,0.55476691,115790.0,115780.0,0.70403529]
[1757698680298,0.55476691,115790.0,115780.0,0.95403529]
[1757698680794,0.6957422,115790.0,115780.0,0.95403529]
[1757698681098,0.6957422,115790.0,115780.0,0.56306]
[1757698681399,0.83671749,115790.0,115780.0,0.56306]
[1757698681700,0.41379162,115790.0,115780.0,0.56306]
[1757698681901,0.83671749,115790.0,115780.0,0.56306]
[1757698682194,0.83671749,115790.0,115780.0,0.544]
[1757698682601,0.83671749,115790.0,115780.0,0.54]
[1757698682903,0.03548,115780.0,115770.0,0.02606]
[1757698683197,0.81920587,115780.0,115770.0,0.55306]
[1757698684202,0.81920587,115780.0,115770.0,0.55406]
[1757698684501,0.67823058,115780.0,115770.0,0.55406]
[1757698684890,0.39628,115780.0,115770.0,0.69503529]
[1757698685095,0.39628,115780.0,115770.0,1.22698587]
[1757698685301,0.38229,115780.0,115770.0,1.24015587]
[1757698685494,0.38229,115780.0,115770.0,1.09918058]
[1757698685692,0.53725529,115780.0,115770.0,0.80406]
[1757698685896,0.53725529,115780.0,115770.0,0.94603529]
[1757698685897,0.67823058,115780.0,115770.0,0.94603529]
[1757698686102,0.67823058,115780.0,115770.0,0.55506]
[1757698686306,0.81920587,115780.0,115770.0,0.55506]
[1757698687299,0.39628,115780.0,115770.0,0.55506]
[1757698687901,1.09502683,115780.0,115740.0,0.31488741]
[1757698688104,0.52326529,115750.0,115740.0,1.54837212]
[1757698688398,0.52326529,115750.0,115740.0,1.68934741]
[1757698688603,0.52326529,115750.0,115740.0,1.70910354]
[1757698688902,0.50177529,115750.0,115740.0,1.40409296]
[1757698689300,0.50177529,115750.0,115740.0,1.68604354]
[1757698689601,0.50177529,115750.0,115740.0,1.54806825]
[1757698689802,0.51934058,115750.0,115740.0,1.54806825]
[1757698690207,0.51934058,115750.0,115740.0,0.95691212]
[1757698690399,0.51934058,115750.0,115740.0,1.77835212]
[1757698690707,0.51934058,115750.0,115740.0,1.78035212]
[1757698691498,0.37836529,115750.0,115740.0,1.63937683]
[1757698691702,0.51934058,115750.0,115740.0,1.78035212]
[1757698692103,0.37836529,115750.0,115740.0,1.63937683]
[1757698692410,0.51934058,115750.0,115740.0,1.62620683]
[1757698692609,0.51934058,115750.0,115740.0,1.90815741]
[1757698693005,0.37836529,115750.0,115740.0,1.90815741]
[1757698693408,0.37836529,115750.0,115740.0,1.62620683]
[1757698693707,0.51934058,115750.0,115740.0,1.90815741]
[1757698693908,0.37836529,115750.0,115740.0,1.90815741]
[1757698694612,0.01756529,115750.0,115740.0,2.0491327]
[1757698695108,0.3608,115760.0,115740.0,2.0491327]
[1757698695306,0.3608,115760.0,115750.0,0.30209674]
[1757698695505,0.3608,115760.0,115750.0,0.92209674]
[1757698695710,0.3608,115760.0,115750.0,1.06307203]
[1757698696600,0.3608,115760.0,115750.0,1.06407203]
[1757698696808,0.38661218,115760.0,115750.0,1.06407203]
[1757698697203,0.38661218,115760.0,115750.0,1.06507203]
[1757698699710,0.38661218,115760.0,115750.0,1.88647203]
[1757698700616,0.38661218,115760.0,115750.0,0.64214616]
[1757698700817,0.38661218,115760.0,115750.0,1.58433529]
[1757698700818,0.66856276,115760.0,115750.0,1.58433529]
[1757698701008,0.80953805,115760.0,115750.0,0.622]
[1757698701413,0.80953805,115760.0,115750.0,0.76297529]
[1757698701414,0.66856276,115760.0,115750.0,0.76297529]
[1757698702612,0.52758747,115760.0,115750.0,0.76297529]
[1757698702814,0.52758747,115760.0,115750.0,1.72527058]
[1757698703015,0.38661218,115760.0,115750.0,1.72527058]
[1757698703217,0.52758747,115760.0,115750.0,1.44332]
[1757698703419,0.52758747,115760.0,115750.0,0.622]
[1757698703611,0.66856276,115760.0,115750.0,1.58429529]
[1757698704209,0.38661218,115760.0,115750.0,1.58429529]
[1757698704410,0.66856276,115760.0,115750.0,1.44332]
[1757698704908,0.66856276,115760.0,115750.0,1.58429529]
[1757698705814,0.38661218,115760.0,115750.0,1.58429529]
[1757698706020,0.66856276,115760.0,115750.0,1.58429529]
[1757698706218,0.38661218,115760.0,115750.0,1.58429529]
[1757698706421,0.52758747,115760.0,115750.0,1.58429529]
[1757698707417,0.38661218,115760.0,115750.0,1.88655309]
[1757698707824,0.38661218,115760.0,115750.0,0.64230722]
[1757698708019,0.52758747,115760.0,115750.0,0.9242578]
[1757698708218,0.52758747,115760.0,115750.0,1.46354722]
[1757698708527,0.38661218,115760.0,115750.0,0.78328251]
[1757698708715,0.66856276,115760.0,115750.0,0.64230722]
[1757698708915,0.66856276,115760.0,115750.0,1.60452251]
[1757698710524,0.38661218,115760.0,115750.0,1.60452251]
[1757698710726,0.02581218,115760.0,115750.0,2.13647309]
[1757698711121,0.02581218,115760.0,115750.0,2.22282069]
[1757698711321,0.02581218,115760.0,115750.0,2.13647309]
[1757698711521,0.02581218,115760.0,115750.0,2.49727309]
[1757698712426,0.01744413,115770.0,115750.0,2.49727309]
[1757698712626,0.04415017,115770.0,115760.0,0.50177529]
[1757698712821,0.04415017,115770.0,115760.0,0.78372587]
[1757698713018,0.04415017,115770.0,115760.0,1.35372587]
[1757698713523,0.01744413,115770.0,115760.0,1.69006607]
[1757698715126,0.01751162,115790.0,115770.0,0.0863292]
[1757698715322,0.01751162,115790.0,115780.0,1.72133117]
[1757698715528,0.01751162,115790.0,115780.0,2.26133117]
[1757698715819,0.01751162,115790.0,115780.0,2.42488587]
[1757698716025,0.01751162,115790.0,115780.0,2.42468587]
[1757698716215,0.01851162,115790.0,115780.0,2.42468587]
[1757698716418,0.02051162,115790.0,115780.0,2.42468587]
[1757698716819,0.02051162,115790.0,115780.0,2.87181117]
[1757698717027,0.01744324,115820.0,115790.0,0.0863159]
[1757698717324,0.01744324,115820.0,115810.0,0.42292587]
[1757698717325,0.40489653,115820.0,115810.0,0.42292587]
[1757698717516,0.01744324,115820.0,115810.0,0.95292587]
[1757698717716,0.01744324,115820.0,115810.0,0.53]
[1757698718014,0.01744324,115820.0,115810.0,1.31372587]
[1757698718220,0.3608,115830.0,115810.0,1.31372587]
[1757698718524,0.01740607,115840.0,115820.0,1.63428587]
[1757698718722,0.01740607,115840.0,115830.0,0.28195058]
[1757698718921,0.01740607,115840.0,115830.0,1.3708]
[1757698719225,0.01740607,115840.0,115830.0,0.80195058]
[1757698719429,0.01740607,115840.0,115830.0,1.65255058]
[1757698719623,0.01740607,115840.0,115830.0,1.64739058]
[1757698719818,0.15838136,115840.0,115830.0,0.79695058]
[1757698720025,0.01740607,115840.0,115830.0,1.64723058]
[1757698720219,0.02040607,115840.0,115830.0,1.36528]
[1757698720421,0.02040607,115840.0,115830.0,1.62934162]
[1757698720917,0.02040607,115840.0,115830.0,1.36528]
[1757698721119,0.02040607,115840.0,115830.0,1.62934162]
[1757698721319,0.02340607,115840.0,115830.0,1.36528]
[1757698721520,0.02340607,115840.0,115830.0,1.62934162]
[1757698721925,0.02040607,115840.0,115830.0,1.62934162]
[1757698722125,0.02140607,115840.0,115830.0,1.36736]
[1757698722422,0.89626769,115840.0,115830.0,1.36708]
[1757698722629,0.89626769,115840.0,115830.0,0.515]
[1757698722819,0.63220607,115840.0,115830.0,0.852]
[1757698723022,0.63220607,115840.0,115830.0,1.422]
[1757698723223,0.38220607,115840.0,115830.0,1.422]
[1757698723427,0.3648,115840.0,115830.0,1.422]
[1757698723830,0.004,115840.0,115830.0,1.422]
[1757698724537,0.004,115840.0,115830.0,1.68606162]
[1757698725031,0.004,115840.0,115830.0,1.422]
[1757698725823,0.004,115840.0,115830.0,1.68606162]
[1757698727435,0.004,115840.0,115830.0,1.422]
[1757698727636,0.004,115840.0,115830.0,1.68606162]
[1757698729437,0.004,115840.0,115830.0,1.422]
[1757698729832,0.004,115840.0,115830.0,1.68606162]
[1757698730442,0.83336659,115840.0,115830.0,0.57]
[1757698730732,0.6148,115840.0,115830.0,1.42168]
[1757698730931,0.83336659,115840.0,115820.0,0.02016486]
[1757698731135,0.57936659,115830.0,115800.0,0.02051143]
[1757698731341,0.3608,115810.0,115800.0,0.67051143]
[1757698731531,0.57936659,115820.0,115800.0,1.20251143]
[1757698731532,0.59680785,115820.0,115800.0,1.20251143]
[1757698732038,0.37824126,115820.0,115800.0,1.42107802]
[1757698732333,0.01744126,115820.0,115810.0,0.21856659]
[1757698732527,0.01744126,115820.0,115810.0,0.74856659]
[1757698733329,0.01744126,115820.0,115810.0,0.53]
[1757698733537,0.01744126,115820.0,115810.0,0.74856659]
[1757698733844,0.01744126,115820.0,115810.0,0.53]
[1757698734139,0.01744126,115820.0,115810.0,0.74856659]
[1757698735336,0.01744126,115820.0,115810.0,1.11436659]
[1757698737034,0.01744126,115820.0,115810.0,0.8958]
[1757698737240,0.23600785,115820.0,115810.0,1.38328]
[1757698737547,0.37824126,115820.0,115810.0,1.38328]
[1757698737747,0.37824126,115820.0,115810.0,1.60184659]
[1757698738246,0.37824126,115820.0,115810.0,1.38328]
[1757698738446,0.01744126,115820.0,115810.0,1.38328]
[1757698738650,0.01744126,115820.0,115810.0,1.60184659]
[1757698739544,0.01744126,115820.0,115810.0,1.96264659]
[1757698740144,0.01744126,115820.0,115810.0,1.74408]
[1757698740450,0.37824126,115830.0,115810.0,1.74408]
[1757698740650,0.40478735,115830.0,115810.0,1.96264659]
[1757698741149,0.40478735,115830.0,115820.0,0.21856659]
[1757698741449,0.40478735,115830.0,115820.0,0.81856659]
[1757698741745,0.04398735,115830.0,115820.0,0.81856659]
[1757698741951,0.04398735,115830.0,115820.0,1.17936659]
[1757698742152,0.04402007,115830.0,115820.0,1.17936659]
[1757698742954,0.01744126,115830.0,115820.0,0.9608]
[1757698743153,0.01744126,115830.0,115820.0,1.17936659]
[1757698743450,0.01744126,115830.0,115820.0,1.18236659]
[1757698744443,0.04405112,115830.0,115820.0,1.18236659]
[1757698745657,0.04405112,115830.0,115820.0,2.02720659]
[1757698746350,0.26261771,115830.0,115820.0,1.44724]
[1757698746655,0.62341771,115830.0,115820.0,1.44724]
[1757698747249,0.65448885,115830.0,115820.0,1.44724]
[1757698747955,0.07512226,115830.0,115820.0,2.02660659]
[1757698748355,0.04405112,115830.0,115820.0,2.02660659]
[1757698748758,0.04405112,115830.0,115820.0,1.80804]
[1757698749054,0.04405112,115830.0,115820.0,2.02660659]
[1757698750260,0.02660986,115830.0,115820.0,2.27660659]
[1757698750456,0.02660986,115830.0,115820.0,1.91580659]
[1757698750763,0.02440986,115830.0,115820.0,2.72369659]
[1757698751149,0.03107114,115850.0,115820.0,2.50513]
[1757698751358,0.03107114,115850.0,115840.0,0.3608]
[1757698751559,0.43847786,115860.0,115840.0,1.95188659]
[1757698751761,0.3608,115850.0,115840.0,0.52]
[1757698751952,0.59222659,115850.0,115840.0,1.37252]
[1757698752146,0.65473114,115850.0,115840.0,1.37252]
[1757698752353,0.87329773,115850.0,115840.0,1.37252]
[1757698753160,0.84222659,115850.0,115840.0,1.37252]
[1757698753460,0.62366,115850.0,115840.0,1.37252]
[1757698753660,0.84222659,115850.0,115840.0,1.37352]
[1757698753962,0.84322659,115850.0,115840.0,1.37352]
[1757698754664,0.62466,115850.0,115840.0,1.37352]
[1757698755855,0.6118,115850.0,115840.0,1.38718]
[1757698756256,1.08495318,115850.0,115840.0,0.521]
[1757698756452,1.08495318,115850.0,115840.0,0.001]
[1757698756453,1.1315599,115850.0,115840.0,0.001]
[1757698756657,0.91299331,115850.0,115840.0,0.001]
[1757698759362,1.1315599,115850.0,115840.0,0.001]
[1757698759666,0.91299331,115850.0,115840.0,0.001]
[1757698759962,1.1315599,115850.0,115840.0,0.001]
[1757698761255,1.16255741,115850.0,115840.0,0.001]
[1757698761456,0.72542423,115850.0,115840.0,0.001]
[1757698761658,0.94399082,115850.0,115840.0,0.001]
[1757698761853,1.79595082,115850.0,115840.0,0.001]
[1757698762057,0.94399082,115850.0,115840.0,0.001]
[1757698762263,1.79595082,115850.0,115840.0,0.001]
[1757698762463,1.54583082,115850.0,115840.0,0.0235]
[1757698762765,1.52536854,115850.0,115840.0,0.001]
[1757698763666,0.67352854,115850.0,115840.0,0.001]
[1757698765359,0.67352854,115850.0,115840.0,0.0235]
[1757698765560,0.42396444,115850.0,115840.0,0.58742]
[1757698766067,0.64253103,115850.0,115840.0,0.5735]
[1757698767272,0.42396444,115850.0,115840.0,0.5735]
[1757698767462,0.64253103,115850.0,115840.0,0.5735]
[1757698768268,0.61638659,115850.0,115840.0,0.5735]
[1757698768468,0.38496,115850.0,115840.0,1.05598659]
[1757698768670,0.38331,115850.0,115840.0,0.83742]
[1757698769470,0.001,115850.0,115840.0,1.05598659]
[1757698769669,0.001,115850.0,115840.0,1.41678659]
[1757698771372,0.001,115850.0,115840.0,1.90426659]
[1757698772066,0.3618,115850.0,115840.0,1.90426659]
[1757698773167,0.3618,115850.0,115840.0,1.05598659]
[1757698773362,0.3618,115850.0,115840.0,1.68478]
[1757698773965,0.61582659,115850.0,115840.0,1.4207]
[1757698774160,0.61582659,115850.0,115840.0,0.5735]
[1757698774370,0.86582659,115850.0,115840.0,0.001]
[1757698774974,0.86587659,115850.0,115840.0,0.001]
[1757698778067,0.86587659,115850.0,115840.0,0.6335]
[1757698778372,0.86587659,115850.0,115840.0,0.6035]
[1757698778564,0.64731,115850.0,115840.0,0.6035]
[1757698778767,0.86587659,115850.0,115840.0,0.6035]
[1757698779268,0.61587659,115850.0,115840.0,0.6035]
[1757698780769,0.38336,115850.0,115840.0,0.61742]
[1757698781071,0.38336,115850.0,115840.0,1.08598659]
[1757698781261,0.36185,115850.0,115840.0,1.93070659]
[1757698781467,0.36185,115850.0,115840.0,1.71214]
[1757698781681,0.00105,115850.0,115840.0,1.71214]
[1757698781871,0.00105,115850.0,115840.0,1.93070659]
[1757698782266,0.00105,115850.0,115840.0,1.71214]
[1757698782466,0.00105,115850.0,115840.0,1.93070659]
[1757698782867,0.00105,115850.0,115840.0,2.29150659]
[1757698783068,0.00105,115850.0,115840.0,1.71214]
[1757698783266,0.00105,115850.0,115840.0,2.29150659]
[1757698783462,0.00105,115850.0,115840.0,2.07294]
[1757698784170,0.00105,115850.0,115840.0,1.44678659]